fUSD/lending_fUSD_20260202
["ID","MTS","AMOUNT","RATE_DAILY","PERIOD"]
[404254838,1770007845734,-1130.05353836,0.00016438,2]
[404254839,1770007845744,-1130.05353836,0.00016438,2]
[404254840,1770007845753,-1130.05353836,0.00016438,2]
[404254841,1770007845763,-1130.05353836,0.00016438,2]
[404254842,1770007845773,-1130.05353836,0.00016438,2]
[404254843,1770007845782,-1130.05353836,0.00016438,2]
[404254844,1770007845792,-1130.05353836,0.00016438,2]
[404254845,1770007845802,-1130.05353836,0.00016438,2]
[404254846,1770007845811,-1130.05353836,0.00016438,2]
[404254847,1770007845821,-1130.05353836,0.00016438,2]
[404254848,1770007845833,-1130.05353836,0.00016438,2]
[404254849,1770007845842,-1130.05353836,0.00016438,2]
[404254850,1770007845851,-1130.05353836,0.00016438,2]
[404254851,1770007845862,-1130.05353836,0.00016438,2]
[404254852,1770007845872,-1130.05353836,0.00016438,2]
[404254853,1770007845881,-1130.05353836,0.00016438,2]
[404254854,1770007845892,-1130.05353836,0.00016438,2]
[404254855,1770007845902,-1130.05353836,0.00016438,2]
[404254856,1770007845911,-1130.05353836,0.00016438,2]
[404254857,1770007845921,-1130.05353836,0.00016438,2]
[404254858,1770007845931,-1130.05353836,0.00016438,2]
[404254859,1770007845940,-1130.05353836,0.00016438,2]
[404254860,1770007845950,-1130.05353836,0.00016438,2]
[404254861,1770007845959,-1130.05353836,0.00016438,2]
[404254862,1770007845969,-1130.05353836,0.00016438,2]
[404254863,1770007845979,-1130.05353836,0.00016438,2]
[404254864,1770007845989,-1130.05353836,0.00016438,2]
[404254865,1770007845999,-1130.05353836,0.00016438,2]
[404254866,1770007846009,-1130.05353836,0.00016438,2]
[404254867,1770007846019,-1130.05353836,0.00016438,2]
[404254868,1770007846029,-1130.05353836,0.00016438,2]
[404254869,1770007846039,-1130.05353836,0.00016438,2]
[404254870,1770007846048,-1130.05353836,0.00016438,2]
[404254871,1770007846058,-1130.05353836,0.00016438,2]
[404254872,1770007846068,-1130.05353836,0.00016438,2]
[404254873,1770007846077,-3032.88106204,0.00016438,2]
[404254874,1770007846280,-3032.88106204,0.00016438,2]
[404254875,1770007846290,-3032.88106204,0.00016438,2]
[404254876,1770007846300,-3032.88106204,0.00016438,2]
[404254877,1770007846309,-3032.88106204,0.00016438,2]
[404254878,1770007846319,-3032.88106204,0.00016438,2]
[404254879,1770007846329,-3032.88106204,0.00016438,2]
[404254880,1770007846339,-3032.88106204,0.00016438,2]
[404254882,1770007846349,-3032.88106204,0.00016438,2]
[404254884,1770007846359,-3032.88106204,0.00016438,2]
[404254886,1770007846369,-3032.88106204,0.00016438,2]
[404254888,1770007846379,-3032.88106204,0.00016438,2]
[404254890,1770007846388,-3032.88106204,0.00016438,2]
[404254892,1770007846398,-3032.88106204,0.00016438,2]
[404254894,1770007846409,-3032.88106204,0.00016438,2]
[404254896,1770007846419,-3032.88106204,0.00016438,2]
[404254897,1770007846428,-3032.88106204,0.00016438,2]
[404254898,1770007846437,-3032.88106204,0.00016438,2]
[404254899,1770007846447,-3032.88106204,0.00016438,2]
[404254900,1770007846456,-3032.88106204,0.00016438,2]
[404254901,1770007846465,-3032.88106204,0.00016438,2]
[404254902,1770007846475,-3032.88106204,0.00016438,2]
[404254903,1770007846485,-3032.88106204,0.00016438,2]
[404254904,1770007846495,-3032.88106204,0.00016438,2]
[404254905,1770007846505,-3032.88106204,0.00016438,2]
[404254906,1770007846515,-3032.88106204,0.00016438,2]
[404254907,1770007846525,-3032.88106204,0.00016438,2]
[404254908,1770007846534,-1872.11781497,0.00016438,2]
[404254909,1770007846543,-753.99,0.00016438,2]
[404254910,1770007846554,-800.78453244,0.00016438,2]
[404254911,1770007846563,-250.55733734,0.00016438,2]
[404254912,1770007846573,-10091.57601831,0.00016479,2]
[404254913,1770007846582,-304.0,0.00016524,2]
[404254914,1770007846591,-159.99157324,0.00016554,2]
[404254915,1770007846601,-212.8,0.00016559,2]
[404254916,1770007846611,-1500.0,0.00016568,2]
[404254917,1770007846620,-504.30163313,0.00016568,2]
[404254918,1770007846630,-343.08326797,0.00016568,2]
[404254919,1770007846640,-1500.0,0.00016568,2]
[404254920,1770007846650,-1500.0,0.00016568,2]
[404254921,1770007846659,-1500.0,0.00016568,2]
[404254922,1770007846668,-1500.0,0.00016568,2]
[404254923,1770007846678,-1500.0,0.00016568,2]
[404254924,1770007846688,-665.40489721,0.00016568,2]
[404254925,1770007846698,-1500.0,0.00016568,2]
[404254926,1770007846708,-545.1454494,0.00016568,2]
[404254927,1770007846718,-1500.0,0.00016568,2]
[404254928,1770007846727,-505.45817911,0.00016568,2]
[404254929,1770007846737,-1005.54193795,0.00016568,2]
[404254930,1770007846747,-505.38162593,0.00016568,2]
[404254931,1770007846757,-240.83933027,0.00016568,2]
[404254932,1770007846766,-1005.24936027,0.00016568,2]
[404254933,1770007846776,-622.87168328,0.00016568,2]
[404254934,1770007846785,-1500.0,0.00016568,2]
[404254935,1770007846795,-1500.0,0.00016568,2]
[404254936,1770007846805,-1500.0,0.00016568,2]
[404254937,1770007846816,-1004.26216588,0.00016568,2]
[404254938,1770007846826,-1500.0,0.00016568,2]
[404254939,1770007846838,-504.6853335,0.00016568,2]
[404254940,1770007846848,-776.88278142,0.00016568,2]
[404254941,1770007846857,-1500.0,0.00016568,2]
[404254942,1770007846867,-1500.0,0.00016568,2]
[404254943,1770007846878,-1500.0,0.00016568,2]
[404254944,1770007846888,-195.13,0.00016712,2]
[404254945,1770007846899,-163.0,0.0001672,2]
[404254946,1770007846909,-163.0,0.0001672,2]
[404254947,1770007846919,-167.0,0.0001672,2]
[404254948,1770007846929,-187.78006525,0.00016726,2]
[404254949,1770007846938,-225.18697532,0.00016726,2]
[404254950,1770007846948,-225.18697532,0.00016726,2]
[404254951,1770007846957,-1536.04360649,0.00016726,2]
[404254952,1770007846967,-924.60877284,0.00016726,2]
[404254953,1770007846977,-179.48047234,0.0001673,2]
[404254954,1770007846987,-16455.58898594,0.00016798,2]
[404254955,1770007846997,-15078.45490139,0.00016798,2]
[404254956,1770007847007,-255.39,0.00016822,2]
[404254957,1770007847016,-168.0,0.0001696,2]
[404254958,1770007847026,-334.5472959,0.00016999,2]
[404254959,1770007847036,-267.02,0.00017022,2]
[404254960,1770007847046,-267.02,0.00017039,2]
[404254961,1770007847055,-270.40551164,0.00017103,2]
[404254962,1770007847065,-2128.18837233,0.00017116,2]
[404254963,1770007847075,-2000.0,0.00017116,2]
[404254964,1770007847084,-1143.18674336,0.00017116,2]
[404254965,1770007847094,-2000.0,0.00017116,2]
[404254966,1770007847103,-2000.0,0.00017116,2]
[404254967,1770007847113,-315.28060531,0.00017116,2]
[404254968,1770007847123,-1988.36339388,0.00017116,2]
[404254969,1770007847132,-1756.98671009,0.00017116,2]
[404254970,1770007847142,-1008.230722,0.00017116,2]
[404254971,1770007847152,-1006.20015718,0.00017116,2]
[404254972,1770007847162,-2000.0,0.00017116,2]
[404254973,1770007847172,-1474.64879752,0.00017116,2]
[404254974,1770007847182,-2000.0,0.00017116,2]
[404254975,1770007847192,-1189.68040771,0.00017116,2]
[404254976,1770007847202,-2000.0,0.00017116,2]
[404254977,1770007847212,-150.00033856,0.00017117,2]
[404254978,1770007847222,-500.0,0.00017139,2]
[404254979,1770007847231,-5696.0,0.00017149,2]
[404254980,1770007847241,-200.0,0.00017171,2]
[404254981,1770007847250,-13125.0,0.00017193,2]
[404254982,1770007847261,-1500.0,0.000172,2]
[404254983,1770007847271,-3292.0,0.00017223,2]
[404254984,1770007847281,-1000.0,0.0001726,2]
[404254985,1770007847290,-194.72792766,0.00017274,2]
[404254986,1770007847300,-233.51889341,0.00017274,2]
[404254987,1770007847310,-233.51889341,0.00017274,2]
[404254988,1770007847319,-1592.87721993,0.00017274,2]
[404254989,1770007847329,-277.94807481,0.00017274,2]
[404254990,1770007847338,-200.0,0.00017283,2]
[404254991,1770007847348,-159.99157324,0.00017306,2]
[404254992,1770007847358,-16455.58898594,0.00017349,2]
[404254993,1770007847368,-15078.45490139,0.00017349,2]
[404254994,1770007847378,-168.0,0.00017373,2]
[404254995,1770007847387,-728.464,0.00017488,2]
[404254996,1770007847397,-1410.0,0.00017488,2]
[404254997,1770007847408,-1338.357,0.00017488,2]
[404254998,1770007847418,-925.751,0.00017488,2]
[404254999,1770007847427,-1205.0,0.00017488,2]
[404255000,1770007847437,-161.033,0.00017488,2]
[404255001,1770007847447,-1278.693,0.00017488,2]
[404255002,1770007847456,-2445.0,0.00017488,2]
[404255003,1770007847466,-6579.0,0.00017488,2]
[404255004,1770007847476,-3253.0,0.00017488,2]
[404255005,1770007847485,-200.0,0.00017496,2]
[404255006,1770007847495,-1899.6725397,0.000175,2]
[404255007,1770007847504,-1000.0,0.00017534,2]
[404255008,1770007847514,-212.8,0.00017543,2]
[404255009,1770007847523,-1600.0,0.00017558,2]
[404255010,1770007847543,-5696.0,0.00017569,2]
[404255011,1770007847558,-200.0,0.0001759,2]
[404255012,1770007847568,-168.0,0.00017591,2]
[404255013,1770007847579,-1500.0,0.000176,2]
[404255014,1770007847589,-3012.2001319,0.0001764,2]
[404255015,1770007847600,-1522.26710959,0.00017646,2]
[404255016,1770007847611,-2059.6752,0.00017646,2]
[404255017,1770007847622,-502.76473862,0.00017664,2]
[404255018,1770007847633,-1002.53462592,0.00017664,2]
[404255019,1770007847643,-947.23523297,0.00017664,2]
[404255020,1770007847654,-1002.03881526,0.00017664,2]
[404255021,1770007847664,-1504.86417643,0.00017664,2]
[404255022,1770007847674,-1216.63993214,0.00017664,2]
[404255023,1770007847685,-163.0,0.0001768,2]
[404255024,1770007847695,-255.39,0.00017683,2]
[404255025,1770007847706,-150.0,0.00017698,2]
[404255026,1770007847716,-500.0,0.00017698,2]
[404255027,1770007847726,-150.0,0.00017698,2]
[404255028,1770007847737,-200.0,0.00017698,2]
[404255029,1770007847747,-150.0,0.00017698,2]
[404255030,1770007847757,-500.0,0.00017698,2]
[404255031,1770007847768,-150.0,0.00017698,2]
[404255032,1770007847778,-500.0,0.00017698,2]
[404255033,1770007847788,-150.0,0.00017698,2]
[404255034,1770007847798,-150.0,0.00017753,2]
[404255035,1770007847808,-500.0,0.00017753,2]
[404255036,1770007847818,-500.0,0.00017753,2]
[404255037,1770007847831,-150.0,0.00017753,2]
[404255038,1770007847842,-500.0,0.00017753,2]
[404255039,1770007847852,-150.0,0.00017769,2]
[404255040,1770007847862,-5696.0,0.00017785,2]
[404255041,1770007847873,-1500.0,0.000178,2]
[404255042,1770007847883,-25000.0,0.00017803,3]
[404255043,1770007847899,-1000.0,0.00017807,2]
[404255044,1770007847911,-150.0,0.00017808,2]
[404255045,1770007847921,-500.0,0.00017808,2]
[404255046,1770007847932,-500.0,0.00017808,2]
[404255047,1770007847943,-200.0,0.00017808,2]
[404255048,1770007847952,-500.0,0.00017808,2]
[404255049,1770007847962,-150.0,0.00017808,2]
[404255050,1770007847972,-1000.0,0.00017808,2]
[404255051,1770007847982,-25000.0,0.00017812,3]
[404255052,1770007847992,-1000.0,0.00017816,2]
[404255053,1770007848003,-2000.0,0.0001782,2]
[404255054,1770007848012,-2000.0,0.0001782,2]
[404255055,1770007848022,-25000.0,0.00017821,3]
[404255056,1770007848032,-201.93286099,0.00017822,2]
[404255057,1770007848042,-242.15909246,0.00017822,2]
[404255058,1770007848052,-260.62456749,0.00017822,2]
[404255059,1770007848061,-1651.81367706,0.00017822,2]
[404255060,1770007848071,-25000.0,0.0001783,3]
[404255061,1770007848081,-416.29404632,0.00017835,2]
[404255062,1770007848096,-25000.0,0.00017838,3]
[404255063,1770007848105,-1000.0,0.00017842,2]
[404255064,1770007848115,-1000.0,0.00017845,2]
[404255065,1770007848125,-25000.0,0.00017847,3]
[404255066,1770007848136,-150.0,0.00017849,2]
[404255067,1770007848145,-25000.0,0.00017856,3]
[404255068,1770007848156,-200.0,0.00017856,2]
[404255069,1770007848166,-153.724426,0.00017856,2]
[404255070,1770007848176,-153.724426,0.00017856,2]
[404255071,1770007848186,-153.724426,0.00017856,2]
[404255072,1770007848196,-153.724426,0.00017856,2]
[404255073,1770007848206,-151.0,0.00017856,2]
[404255074,1770007848215,-151.0,0.00017856,2]
[404255075,1770007848225,-151.0,0.00017856,2]
[404255076,1770007848236,-151.0,0.00017856,2]
[404255077,1770007848246,-185.622733,0.00017856,2]
[404255078,1770007848261,-185.622733,0.00017856,2]
[404255079,1770007848271,-185.622733,0.00017856,2]
[404255080,1770007848282,-185.622733,0.00017856,2]
[404255081,1770007848292,-227.467598,0.00017856,2]
[404255082,1770007848302,-227.467598,0.00017856,2]
[404255083,1770007848313,-227.467598,0.00017856,2]
[404255084,1770007848323,-227.467598,0.00017856,2]
[404255085,1770007848333,-1101.57017602,0.00017861,2]
[404255086,1770007848344,-150.0,0.00017862,2]
[404255087,1770007848354,-500.0,0.00017862,2]
[404255088,1770007848363,-500.0,0.00017862,2]
[404255089,1770007848373,-500.0,0.00017862,2]
[404255090,1770007848383,-150.0,0.00017863,2]
[404255091,1770007848393,-25000.0,0.00017865,3]
[404255092,1770007848403,-25000.0,0.00017874,3]
[404255093,1770007848413,-25000.0,0.00017882,3]
[404255094,1770007848422,-25000.0,0.00017891,3]
[404255095,1770007848432,-179.48047234,0.000179,2]
[404255096,1770007848442,-25000.0,0.000179,3]
[404255097,1770007848452,-270.40551164,0.000179,2]
[404255098,1770007848461,-151.0,0.000179,2]
[404255099,1770007848471,-163.404548,0.000179,2]
[404255100,1770007848481,-151.0,0.000179,2]
[404255101,1770007848491,-151.0,0.000179,2]
[404255102,1770007848500,-155.468766,0.000179,2]
[404255103,1770007848510,-151.0,0.000179,2]
[404255104,1770007848520,-16455.58898594,0.000179,2]
[404255105,1770007848529,-18559.34183544,0.000179,3]
[404255106,1770007848539,-3637.57293296,0.000179,2]
[404255107,1770007848548,-15078.45490139,0.000179,2]
[404255108,1770007848558,-283.0,0.00017917,2]
[404255109,1770007848567,-500.0,0.00017917,2]
[404255110,1770007848577,-151.13386207,0.00017917,2]
[404255111,1770007848586,-500.0,0.00017917,2]
[404255112,1770007848597,-150.0,0.00017918,2]
[404255113,1770007848611,-1000.0,0.00017963,2]
[404255114,1770007848622,-1000.0,0.00017963,2]
[404255115,1770007848632,-1000.0,0.00017963,2]
[404255116,1770007848643,-1000.0,0.00017963,2]
[404255117,1770007848653,-1000.0,0.00017963,2]
[404255118,1770007848663,-1000.0,0.00017963,2]
[404255119,1770007848674,-1000.0,0.00017963,2]
[404255120,1770007848684,-883.519,0.00017963,2]
[404255121,1770007848694,-618.564,0.0001797,2]
[404255122,1770007848704,-500.0,0.00017972,2]
[404255123,1770007848835,-309.28369003,0.00017972,2]
[404255124,1770007848846,-150.0,0.00017972,2]
[404255125,1770007848856,-235.57166318,0.0001799,2]
[404255126,1770007848865,-409.0,0.00017997,2]
[404255127,1770007848874,-248.17115062,0.00017999,2]
[404255128,1770007848883,-300.0,0.00017999,2]
[404255129,1770007848892,-300.0,0.00017999,2]
[404255130,1770007848904,-300.0,0.00017999,2]
[404255131,1770007848913,-666.0,0.00017999,2]
[404255132,1770007848923,-307.79570543,0.00017999,2]
[404255133,1770007848935,-2269806.81070505,0.00018,2]
[404255134,1770007848945,-150.0,0.00018,2]
[404255135,1770007848954,-2348.91140711,0.00018,2]
[404255136,1770007848963,-150.0,0.00018,2]
[404255137,1770007848973,-456.03157398,0.00018,2]
[404255138,1770007848982,-254.56,0.00018,2]
[404255139,1770007848992,-1000.0,0.00018,2]
[404255140,1770007849001,-1000.0,0.00018,2]
[404255141,1770007849010,-1000.0,0.00018,2]
[404255142,1770007849019,-1000.0,0.00018,2]
[404255143,1770007849029,-1000.0,0.00018,2]
[404255144,1770007849038,-1000.0,0.00018,2]
[404255145,1770007849047,-1000.0,0.00018,2]
[404255146,1770007849057,-1000.0,0.00018,2]
[404255147,1770007849066,-1000.0,0.00018,2]
[404255148,1770007849075,-1000.0,0.00018,2]
[404255149,1770007849084,-1000.0,0.00018,2]
[404255150,1770007849093,-1000.0,0.00018,2]
[404255151,1770007849103,-1000.0,0.00018,2]
[404255152,1770007849112,-1000.0,0.00018,2]
[404255153,1770007849121,-1000.0,0.00018,2]
[404255154,1770007849133,-1000.0,0.00018,2]
[404255155,1770007849143,-1000.0,0.00018,2]
[404255156,1770007849155,-1000.0,0.00018,2]
[404255157,1770007849165,-1000.0,0.00018,2]
[404255158,1770007849174,-1000.0,0.00018,2]
[404255159,1770007849184,-1000.0,0.00018,2]
[404255160,1770007849193,-1000.0,0.00018,2]
[404255161,1770007849202,-1000.0,0.00018,2]
[404255162,1770007849211,-1000.0,0.00018,2]
[404255163,1770007849221,-1000.0,0.00018,2]
[404255164,1770007849230,-1000.0,0.00018,2]
[404255165,1770007849239,-1000.0,0.00018,2]
[404255166,1770007849249,-1037.70585105,0.00018,2]
[404255167,1770007849258,-427087.27619412,0.00018,2]
[404255168,1770007849496,-621.86898814,0.00018,2]
[404255169,1770007849508,-38367.38043053,0.00018,2]
[404255170,1770007849519,-1393.20373301,0.00018,2]
[404255171,1770007849531,-3261.22849371,0.00018,2]
[404255172,1770007849816,-2944.74431149,0.00018,2]
[404255173,1770007849847,-345292.56143287,0.00018,2]
[404255174,1770007849864,-1267686.11920086,0.00018,2]
[404255175,1770007849975,-3490.19107802,0.00018,2]
[404255176,1770007849987,-2945.85690857,0.00018,2]
[404255177,1770007849999,-1169.3632371,0.00018,2]
[404255178,1770007850055,-271.765,0.00018,2]
[404255179,1770007850066,-6512.36100792,0.00018,2]
[404255181,1770007973967,479.387,0.00012841,2]
[404255182,1770007985329,4936.6766958,0.00012819,2]
[404255183,1770008013183,950.52767847,0.0001282,2]
[404255184,1770008019803,1667.59464096,0.00012812,2]
[404255185,1770008068353,500.0,0.0001282,2]
[404255186,1770008092743,179.48047234,0.0001282,2]
[404255187,1770008112390,13570.60941126,0.0001282,2]
[404255188,1770008126693,160.04702613,0.0001282,2]
[404255189,1770008264023,202.86183608,0.000201,30]
[404255190,1770008295663,978.73366113,0.0001282,2]
[404255191,1770008340914,2471.8202,0.00012812,2]
[404255192,1770008365332,171.64203726,0.00012812,2]
[404255193,1770008445546,423861.17992265,0.00012812,2]
[404255194,1770008445579,1999292.86,0.00012812,2]
[404255195,1770008446432,-361.73493695,0.00012812,2]
[404255196,1770008448533,-500.036556,0.00012812,2]
[404255197,1770008451844,-166.66,0.00012812,2]
[404255198,1770008455165,-162.97609342,0.00012812,2]
[404255199,1770008457272,-275.01153369,0.00012812,2]
[404255200,1770008461470,-359.11,0.00012812,2]
[404255201,1770008463618,-250.0,0.00012812,2]
[404255202,1770008465130,-532.05473075,0.00012812,2]
[404255203,1770008467159,-359.11,0.00012812,2]
[404255204,1770008469210,-448.16559277,0.00012812,2]
[404255205,1770008472457,-48182.78119233,0.00012812,2]
[404255206,1770008473930,-1492.90782458,0.00012812,2]
[404255207,1770008478410,-250.0,0.00012812,2]
[404255208,1770008480492,-1062.3812504,0.00012812,2]
[404255209,1770008482528,-386.24934048,0.00012812,2]
[404255210,1770008494682,-250.0,0.00012812,2]
[404255211,1770008495554,10000.01,0.000128,2]
[404255212,1770008495582,4316.35241782,0.000128,2]
[404255213,1770008497304,-309.85696236,0.00012812,2]
[404255214,1770008498689,5683.65758218,0.000128,2]
[404255215,1770008498712,7938.97357781,0.000128,2]
[404255216,1770008502736,-386.71399708,0.00012812,2]
[404255217,1770008504468,-462.2217,0.00012812,2]
[404255218,1770008506558,-500.0,0.00012812,2]
[404255219,1770008508986,-3075.28835417,0.00012812,2]
[404255220,1770008512229,-586.3,0.00012812,2]
[404255221,1770008517282,-450.1815159,0.00012812,2]
[404255222,1770008520001,-1346.86382089,0.00012812,2]
[404255223,1770008521488,-257.0,0.00012812,2]
[404255224,1770008525558,-408.3,0.00012812,2]
[404255225,1770008527690,-322.20939922,0.00012812,2]
[404255226,1770008529231,-291.0,0.00012812,2]
[404255228,1770008531947,856.39195348,0.000128,2]
[404255229,1770008533638,-1006.6584841,0.00012812,2]
[404255230,1770008542055,856.39195348,0.000128,2]
[404255231,1770008545228,348.25251523,0.00012811,2]
[404255232,1770008545249,10000.01,0.00012811,2]
[404255233,1770008545270,10000.01,0.00012811,2]
[404255234,1770008545294,10000.01,0.00012811,2]
[404255235,1770008545315,803.86643853,0.00012811,2]
[404255236,1770008557318,3831.71620423,0.00012812,2]
[404255237,1770008557485,184.97792066,0.00012812,2]
[404255238,1770008557639,2092.06378113,0.00012812,2]
[404255239,1770008557745,378.38431742,0.00012812,2]
[404255241,1770008581574,300.0,0.00012811,2]
[404255242,1770008583624,150.0,0.00012811,2]
[404255243,1770008607304,291.0,0.00012811,2]
[404255246,1770008641943,300.0,0.00012811,2]
[404255251,1770008695799,760.89017312,0.00012802,2]
[404255252,1770008701509,907.11116491,0.00012811,2]
[404255253,1770008701560,292.88883509,0.00012811,2]
[404255255,1770008719016,157.83,0.00012798,2]
[404255256,1770008733343,-721.03994196,0.00012812,2]
[404255263,1770008747751,806.20615995,0.00012712,2]
[404255264,1770008761836,300.0,0.00012811,2]
[404255265,1770008762481,150.0,0.00012811,2]
[404255266,1770008763325,172.0,5.8e-07,2]
[404255267,1770008823159,302.32731001,0.00012712,2]
[404255269,1770008832549,500.0,0.00012812,2]
[404255270,1770008833297,500.0,0.00012812,2]
[404255271,1770008833345,151.0,0.00012812,2]
[404255272,1770008833780,500.0,0.00012812,2]
[404255273,1770008833927,151.0,0.00012812,2]
[404255274,1770008834387,500.0,0.00012812,2]
[404255275,1770008834516,151.0,0.00012812,2]
[404255276,1770008835102,500.0,0.00012812,2]
[404255277,1770008835149,151.0,0.00012812,2]
[404255278,1770008835724,500.0,0.00012812,2]
[404255279,1770008835876,151.0,0.00012812,2]
[404255280,1770008836376,500.0,0.00012812,2]
[404255281,1770008836574,151.0,0.00012812,2]
[404255282,1770008836989,387.4955611,0.00012812,2]
[404255283,1770008837197,151.0,0.00012812,2]
[404255284,1770008837800,151.0,0.00012812,2]
[404255285,1770008838417,151.0,0.00012812,2]
[404255286,1770008838868,466.08793621,0.00012712,2]
[404255287,1770008839039,151.0,0.00012812,2]
[404255288,1770008839635,151.0,0.00012812,2]
[404255289,1770008841534,500.0,0.00012812,2]
[404255290,1770008847663,-2699.01397031,0.00012812,2]
[404255291,1770008848145,-10000.01,0.00012812,2]
[404255292,1770008848271,-10000.01,0.00012812,2]
[404255293,1770008848375,-10000.01,0.00012812,2]
[404255294,1770008848482,-10000.01,0.00012812,2]
[404255300,1770008849549,-10000.01,0.00012812,2]
[404255301,1770008852246,-10000.01,0.00012812,2]
[404255302,1770008852266,-10000.01,0.00012812,2]
[404255303,1770008852308,-10000.01,0.00012812,2]
[404255304,1770008852410,-10000.01,0.00012812,2]
[404255305,1770008856678,-10000.01,0.00012812,2]
[404255306,1770008856785,-10000.01,0.00012812,2]
[404255307,1770008856927,-10000.01,0.00012812,2]
[404255308,1770008857026,-10000.01,0.00012812,2]
[404255309,1770008857244,-10000.01,0.00012812,2]
[404255310,1770008857341,-10000.01,0.00012812,2]
[404255311,1770008857457,-10000.01,0.00012812,2]
[404255312,1770008857562,-10000.01,0.00012812,2]
[404255313,1770008857814,-10000.01,0.00012812,2]
[404255314,1770008857925,-10000.01,0.00012812,2]
[404255315,1770008862787,-200.0,0.00012812,2]
[404255316,1770008863303,500.0,0.00012812,2]
[404255317,1770008863948,500.0,0.00012812,2]
[404255318,1770008864556,500.0,0.00012812,2]
[404255319,1770008865158,500.0,0.00012812,2]
[404255320,1770008865827,500.0,0.00012812,2]
[404255321,1770008866478,500.0,0.00012812,2]
[404255322,1770008867125,500.0,0.00012812,2]
[404255323,1770008868888,178.72,0.00010144,2]
[404255324,1770008869084,178.72,0.00011835,2]
[404255325,1770008870445,206.24263098,0.00012812,2]
[404255326,1770008871473,151.0,0.00012812,2]
[404255327,1770008872105,151.0,0.00012812,2]
[404255328,1770008872768,151.0,0.00012812,2]
[404255329,1770008873407,151.0,0.00012812,2]
[404255330,1770008874569,151.0,0.00012812,2]
[404255331,1770008875223,-5181.32736902,0.00012812,2]
[404255332,1770008875271,151.0,0.00012812,2]
[404255333,1770008875316,-9849.01,0.00012812,2]
[404255334,1770008875391,-10000.01,0.00012812,2]
[404255335,1770008875508,-10000.01,0.00012812,2]
[404255336,1770008875619,-10000.01,0.00012812,2]
[404255337,1770008875718,-10000.01,0.00012812,2]
[404255338,1770008875906,151.0,0.00012812,2]
[404255339,1770008876504,223.13740117,0.00012812,2]
[404255340,1770008879960,150.0,0.000202,30]
[404255341,1770008880953,-9625.87259883,0.00012812,2]
[404255342,1770008881029,-10000.01,0.00012812,2]
[404255343,1770008881167,-10000.01,0.00012812,2]
[404255344,1770008881264,-10000.01,0.00012812,2]
[404255345,1770008881364,-10000.01,0.00012812,2]
[404255346,1770008881451,-10000.01,0.00012812,2]
[404255347,1770008881957,300.0,0.00012811,2]
[404255348,1770008884949,10000.01,0.00012811,2]
[404255349,1770008885214,3425.5367954,0.00012811,2]
[404255350,1770008914951,238.38579,0.00012812,2]
[404255351,1770008946669,500.0,0.00012712,2]
[404255352,1770008951109,-190.63363842,0.00012712,2]
[404255435,1770009000116,1859.37,0.00012649,2]
[404255436,1770009003823,254.0,0.00012712,2]
[404255437,1770009005811,7886.64,0.00012712,2]
[404255438,1770009005834,7432.1757071,0.00012712,2]
[404255439,1770009022386,594.29692096,0.00012612,2]
[404255440,1770009028333,594.29692094,0.00012662,2]
[404255448,1770009031605,-3430.53326158,0.00012712,2]
[404255449,1770009031614,-344.123,0.00012712,2]
[404255450,1770009031624,-300.0,0.00012811,2]
[404255451,1770009031634,-150.0,0.00012811,2]
[404255452,1770009031643,-300.0,0.00012811,2]
[404255453,1770009031652,-300.0,0.00012811,2]
[404255454,1770009031662,-1200.0,0.00012811,2]
[404255455,1770009031672,-300.0,0.00012811,2]
[404255456,1770009031681,-609.37848417,0.00012811,2]